[Event "*** Titled Tuesday Blitz"]
[Site "Chess.com"]
[Date "2021.03.30"]
[Round "2"]
[White "Tea99"]
[Black "Slovak_fighter2000"]
[Result "0-1"]
[WhiteElo "2296"]
[BlackElo "2482"]
[TimeControl "180+1"]
[EndTime "10:19:13 PDT"]
[Termination "Slovak_fighter2000 won by checkmate"]

1. e4 {[%clk 0:03:00.9]} 1... e6 {[%clk 0:02:51.4]} 2. d4 {[%clk 0:03:00.3]}
2... d5 {[%clk 0:02:51.7]} 3. Nc3 {[%clk 0:02:58.5]} 3... Nf6 {[%clk 0:02:51.3]}
4. e5 {[%clk 0:02:54.6]} 4... Nfd7 {[%clk 0:02:50.8]} 5. f4 {[%clk 0:02:54.4]}
5... c5 {[%clk 0:02:50.7]} 6. Nf3 {[%clk 0:02:52.8]} 6... Nc6 {[%clk 0:02:51.6]}
7. Be3 {[%clk 0:02:52.5]} 7... Be7 {[%clk 0:02:51.4]} 8. dxc5 {[%clk 0:02:50.4]}
8... Bxc5 {[%clk 0:02:50.8]} 9. Nd4 {[%clk 0:02:48]} 9... a6 {[%clk 0:02:45.8]}
10. Qd2 {[%clk 0:02:44.7]} 10... Nxd4 {[%clk 0:02:43.1]} 11. Bxd4 {[%clk
0:02:44]} 11... b5 {[%clk 0:02:43.6]} 12. Be2 {[%clk 0:02:38.9]} 12... Qb6
{[%clk 0:02:42.7]} 13. O-O-O {[%clk 0:02:26.1]} 13... Bxd4 {[%clk 0:02:37.2]}
14. Qxd4 {[%clk 0:02:27]} 14... Nc5 {[%clk 0:02:37.1]} 15. Bf3 {[%clk
0:01:56.3]} 15... b4 {[%clk 0:02:33.3]} 16. Ne2 {[%clk 0:01:54.8]} 16... a5
{[%clk 0:02:32.2]} 17. f5 {[%clk 0:01:49.8]} 17... Bd7 {[%clk 0:02:13.1]} 18.
Rhe1 {[%clk 0:01:29.2]} 18... a4 {[%clk 0:02:08.8]} 19. Kb1 {[%clk 0:01:25.3]}
19... Rb8 {[%clk 0:01:46.9]} 20. Nf4 {[%clk 0:01:07.6]} 20... b3 {[%clk
0:01:36.7]} 21. cxb3 {[%clk 0:01:08.5]} 21... axb3 {[%clk 0:01:32.1]} 22. a3
{[%clk 0:01:07]} 22... Ra8 {[%clk 0:01:17.6]} 23. fxe6 {[%clk 0:00:38.4]} 23...
fxe6 {[%clk 0:01:14]} 24. Rc1 {[%clk 0:00:38.3]} 24... Na4 {[%clk 0:01:08.2]}
25. Qxb6 {[%clk 0:00:36.5]} 25... Nxb6 {[%clk 0:01:09.1]} 26. Rc3 {[%clk
0:00:35.9]} 26... Nc4 {[%clk 0:01:07.9]} 27. Re2 {[%clk 0:00:30.7]} 27... Rb8
{[%clk 0:01:02]} 28. Nd3 {[%clk 0:00:20]} 28... O-O {[%clk 0:00:58.1]} 29. Nc5
{[%clk 0:00:19.8]} 29... Rfd8 {[%clk 0:00:56.4]} 30. Rxb3 {[%clk 0:00:19.2]}
30... Rxb3 {[%clk 0:00:51.9]} 31. Nxb3 {[%clk 0:00:20.1]} 31... Rb8 {[%clk
0:00:51.8]} 32. Ka2 {[%clk 0:00:20.4]} 32... g5 {[%clk 0:00:32.2]} 33. Nc5
{[%clk 0:00:19.3]} 33... Bc8 {[%clk 0:00:30.5]} 34. h3 {[%clk 0:00:19]} 34...
Rb5 {[%clk 0:00:27.6]} 35. b4 {[%clk 0:00:18.8]} 35... Kf7 {[%clk 0:00:24.3]}
36. Bh5+ {[%clk 0:00:17.6]} 36... Ke7 {[%clk 0:00:24.6]} 37. Rf2 {[%clk
0:00:17.8]} 37... Nxe5 {[%clk 0:00:23.3]} 38. Re2 {[%clk 0:00:17]} 38... Kd6
{[%clk 0:00:21.8]} 39. Be8 {[%clk 0:00:15.6]} 39... Rb8 {[%clk 0:00:20.7]} 40.
Ba4 {[%clk 0:00:13.8]} 40... Nc4 {[%clk 0:00:19]} 41. Bb3 {[%clk 0:00:12.5]}
41... Nb6 {[%clk 0:00:16.8]} 42. Rd2 {[%clk 0:00:11.5]} 42... Bd7 {[%clk
0:00:15.2]} 43. Ne4+ {[%clk 0:00:10.7]} 43... Ke7 {[%clk 0:00:15.7]} 44. Nxg5
{[%clk 0:00:10.8]} 44... h6 {[%clk 0:00:16.4]} 45. Nf3 {[%clk 0:00:10.5]} 45...
Rg8 {[%clk 0:00:15.9]} 46. g4 {[%clk 0:00:10.1]} 46... Kd6 {[%clk 0:00:15]} 47.
Nd4 {[%clk 0:00:10.4]} 47... e5 {[%clk 0:00:13.4]} 48. Nf5+ {[%clk 0:00:10.4]}
48... Bxf5 {[%clk 0:00:14]} 49. gxf5 {[%clk 0:00:11.3]} 49... Rf8 {[%clk
0:00:14.6]} 50. Bc2 {[%clk 0:00:10.3]} 50... Nc4 {[%clk 0:00:13.6]} 51. Rf2
{[%clk 0:00:10.6]} 51... e4 {[%clk 0:00:13.4]} 52. f6 {[%clk 0:00:09.5]} 52...
Ke6 {[%clk 0:00:12.2]} 53. Bb3 {[%clk 0:00:08.2]} 53... Ne5 {[%clk 0:00:11.6]}
54. Rd2 {[%clk 0:00:06.9]} 54... Nd3 {[%clk 0:00:11.2]} 55. Bc2 {[%clk
0:00:06.4]} 55... Ne5 {[%clk 0:00:07.5]} 56. Bb3 {[%clk 0:00:06.3]} 56... Rd8
{[%clk 0:00:07.3]} 57. f7 {[%clk 0:00:05.4]} 57... Nxf7 {[%clk 0:00:06.7]} 58.
b5 {[%clk 0:00:05.4]} 58... Ke5 {[%clk 0:00:06.9]} 59. b6 {[%clk 0:00:05.2]}
59... e3 {[%clk 0:00:05.8]} 60. Re2 {[%clk 0:00:02.8]} 60... Ke4 {[%clk
0:00:03.5]} 61. b7 {[%clk 0:00:02.7]} 61... Nd6 {[%clk 0:00:02.5]} 62. Bc2+
{[%clk 0:00:02.7]} 62... Kd4 {[%clk 0:00:02.9]} 63. b8=Q {[%clk 0:00:01.7]}
63... Rxb8 {[%clk 0:00:03.2]} 64. Bb3 {[%clk 0:00:02.6]} 64... Ne4 {[%clk
0:00:03.3]} 65. Rb2 {[%clk 0:00:03.4]} 65... Nc3+ {[%clk 0:00:03.6]} 66. Ka1
{[%clk 0:00:04]} 66... e2 {[%clk 0:00:03.8]} 67. Rxe2 {[%clk 0:00:03.7]} 67...
Nxe2 {[%clk 0:00:03.1]} 68. Ba2 {[%clk 0:00:04.6]} 68... Nc3 {[%clk 0:00:02.2]}
69. a4 {[%clk 0:00:05.5]} 69... Rb4 {[%clk 0:00:01.8]} 70. h4 {[%clk 0:00:04.2]}
70... Rxa4 {[%clk 0:00:02.2]} 71. h5 {[%clk 0:00:05.1]} 71... Rxa2# {[%clk
0:00:03.1]} 0-1

[Event "*** Titled Tuesday Blitz"]
[Site "Chess.com"]
[Date "2021.03.30"]
[Round "2"]
[White "Alliswell998"]
[Black "tandaleo"]
[Result "0-1"]
[WhiteElo "2633"]
[BlackElo "2349"]
[TimeControl "180+1"]
[EndTime "10:19:19 PDT"]
[Termination "tandaleo won by checkmate"]

1. e4 {[%clk 0:03:00.9]} 1... e5 {[%clk 0:03:00.1]} 2. Nf3 {[%clk 0:03:00.9]}
2... Nc6 {[%clk 0:02:53.1]} 3. Bc4 {[%clk 0:03:01.2]} 3... Bc5 {[%clk
0:02:50.9]} 4. c3 {[%clk 0:03:01]} 4... Nf6 {[%clk 0:02:49.8]} 5. d3 {[%clk
0:03:00.9]} 5... d6 {[%clk 0:02:46]} 6. Bb3 {[%clk 0:03:01.2]} 6... Bb6 {[%clk
0:02:45.8]} 7. h3 {[%clk 0:03:00]} 7... O-O {[%clk 0:02:45.9]} 8. Nbd2 {[%clk
0:03:00.3]} 8... Nh5 {[%clk 0:02:42.5]} 9. Nc4 {[%clk 0:02:59.6]} 9... Nf4
{[%clk 0:02:35.7]} 10. Bxf4 {[%clk 0:02:57.9]} 10... exf4 {[%clk 0:02:36.6]} 11.
Nxb6 {[%clk 0:02:57.7]} 11... axb6 {[%clk 0:02:37.5]} 12. O-O {[%clk 0:02:56.7]}
12... Qf6 {[%clk 0:02:34.2]} 13. d4 {[%clk 0:02:54.3]} 13... Qg6 {[%clk
0:02:26.8]} 14. Kh1 {[%clk 0:02:51.8]} 14... Qxe4 {[%clk 0:02:24.1]} 15. Re1
{[%clk 0:02:49.4]} 15... Qg6 {[%clk 0:02:23.8]} 16. Qd2 {[%clk 0:02:47.1]} 16...
Qh6 {[%clk 0:01:51.2]} 17. Re4 {[%clk 0:02:31]} 17... Na5 {[%clk 0:01:23.1]} 18.
Bd1 {[%clk 0:02:21.7]} 18... Nc4 {[%clk 0:01:22.3]} 19. Qe2 {[%clk 0:02:19.2]}
19... d5 {[%clk 0:01:21.3]} 20. Re7 {[%clk 0:02:16.5]} 20... Bg4 {[%clk
0:01:09.6]} 21. Bb3 {[%clk 0:02:06.6]} 21... Bxf3 {[%clk 0:01:00.9]} 22. Qxf3
{[%clk 0:02:07.5]} 22... Nd2 {[%clk 0:00:47.2]} 23. Qxd5 {[%clk 0:01:55.2]}
23... c6 {[%clk 0:00:45.8]} 24. Qe5 {[%clk 0:01:10.5]} 24... Nxb3 {[%clk
0:00:44.8]} 25. Re1 {[%clk 0:01:10.2]} 25... Na5 {[%clk 0:00:42.4]} 26. b3
{[%clk 0:01:06.4]} 26... f3 {[%clk 0:00:37.9]} 27. Re4 {[%clk 0:00:56.7]} 27...
fxg2+ {[%clk 0:00:34.8]} 28. Kxg2 {[%clk 0:00:57.6]} 28... g6 {[%clk 0:00:23.5]}
29. Rf4 {[%clk 0:00:49]} 29... Qg7 {[%clk 0:00:23.4]} 30. Qe3 {[%clk 0:00:42.9]}
30... b5 {[%clk 0:00:18.8]} 31. h4 {[%clk 0:00:37.3]} 31... h5 {[%clk
0:00:18.8]} 32. Kh1 {[%clk 0:00:25.7]} 32... b6 {[%clk 0:00:12.7]} 33. Qf3
{[%clk 0:00:25.4]} 33... Rfb8 {[%clk 0:00:10.3]} 34. Kg2 {[%clk 0:00:25.1]}
34... Rf8 {[%clk 0:00:10.2]} 35. Rc7 {[%clk 0:00:24.1]} 35... Rac8 {[%clk
0:00:10.1]} 36. Ra7 {[%clk 0:00:23.7]} 36... Rce8 {[%clk 0:00:09.7]} 37. Rc7
{[%clk 0:00:21]} 37... g5 {[%clk 0:00:06.8]} 38. Rf5 {[%clk 0:00:17.1]} 38...
gxh4+ {[%clk 0:00:06.2]} 39. Kh2 {[%clk 0:00:16.6]} 39... Re1 {[%clk 0:00:06.6]}
40. Qg2 {[%clk 0:00:13.5]} 40... Qxg2+ {[%clk 0:00:06.4]} 41. Kxg2 {[%clk
0:00:14.4]} 41... Re6 {[%clk 0:00:05.5]} 42. Rxh5 {[%clk 0:00:13.9]} 42... Rg6+
{[%clk 0:00:05.9]} 43. Kh3 {[%clk 0:00:13.4]} 43... Kg7 {[%clk 0:00:06.5]} 44.
Rxh4 {[%clk 0:00:11.6]} 44... Rh6 {[%clk 0:00:07]} 45. f4 {[%clk 0:00:11.1]}
45... Rxh4+ {[%clk 0:00:07.1]} 46. Kxh4 {[%clk 0:00:12]} 46... Kf6 {[%clk
0:00:07.8]} 47. Kg4 {[%clk 0:00:11.2]} 47... Rg8+ {[%clk 0:00:07.9]} 48. Kf3
{[%clk 0:00:11.2]} 48... Rh8 {[%clk 0:00:07.5]} 49. Ke4 {[%clk 0:00:11.1]} 49...
Rh3 {[%clk 0:00:07.6]} 50. b4 {[%clk 0:00:10.6]} 50... Nc4 {[%clk 0:00:07.2]}
51. Rxc6+ {[%clk 0:00:11.2]} 51... Ke7 {[%clk 0:00:07.4]} 52. Kf5 {[%clk
0:00:10.7]} 52... Nd6+ {[%clk 0:00:07.4]} 53. Kg4 {[%clk 0:00:09.2]} 53... Re3
{[%clk 0:00:07]} 54. Rc7+ {[%clk 0:00:09.2]} 54... Ke6 {[%clk 0:00:06.8]} 55.
Ra7 {[%clk 0:00:09.2]} 55... Kd5 {[%clk 0:00:07]} 56. f5 {[%clk 0:00:08.9]}
56... Rxc3 {[%clk 0:00:07.2]} 57. f6 {[%clk 0:00:07.4]} 57... Rc4 {[%clk
0:00:07.2]} 58. a3 {[%clk 0:00:06.1]} 58... Rxd4+ {[%clk 0:00:07.7]} 59. Kg5
{[%clk 0:00:06.1]} 59... Ke6 {[%clk 0:00:08.3]} 60. Ra6 {[%clk 0:00:05]} 60...
Rd5+ {[%clk 0:00:07.4]} 61. Kf4 {[%clk 0:00:05]} 61... Kxf6 {[%clk 0:00:07.8]}
62. Ke3 {[%clk 0:00:05.1]} 62... Ke6 {[%clk 0:00:08]} 63. Rxb6 {[%clk
0:00:05.5]} 63... f5 {[%clk 0:00:08.5]} 64. Kf4 {[%clk 0:00:05.8]} 64... Rd4+
{[%clk 0:00:08.6]} 65. Kf3 {[%clk 0:00:05.9]} 65... Ke5 {[%clk 0:00:08.5]} 66.
Ra6 {[%clk 0:00:06.8]} 66... Rd3+ {[%clk 0:00:08.7]} 67. Kf2 {[%clk 0:00:07]}
67... Ke4 {[%clk 0:00:08.3]} 68. a4 {[%clk 0:00:07.9]} 68... bxa4 {[%clk
0:00:08.3]} 69. Rxa4 {[%clk 0:00:08.4]} 69... f4 {[%clk 0:00:09]} 70. b5+ {[%clk
0:00:08.7]} 70... Ke5 {[%clk 0:00:09.5]} 71. b6 {[%clk 0:00:09.6]} 71... Rb3
{[%clk 0:00:09.6]} 72. Ra6 {[%clk 0:00:09.7]} 72... Nc4 {[%clk 0:00:09.2]} 73.
b7 {[%clk 0:00:08.9]} 73... Rxb7 {[%clk 0:00:09.1]} 74. Rh6 {[%clk 0:00:08.5]}
74... Ke4 {[%clk 0:00:08.7]} 75. Rh8 {[%clk 0:00:08.1]} 75... Ne5 {[%clk
0:00:09]} 76. Re8 {[%clk 0:00:08.4]} 76... Rb2+ {[%clk 0:00:09.4]} 77. Ke1
{[%clk 0:00:08.9]} 77... Kd4 {[%clk 0:00:07.5]} 78. Kf1 {[%clk 0:00:08.1]} 78...
f3 {[%clk 0:00:04.7]} 79. Rf8 {[%clk 0:00:08.2]} 79... Ke3 {[%clk 0:00:03.8]}
80. Kg1 {[%clk 0:00:08.3]} 80... Rb1+ {[%clk 0:00:03.9]} 81. Kh2 {[%clk
0:00:08.5]} 81... f2 {[%clk 0:00:03.5]} 82. Re8 {[%clk 0:00:08.6]} 82... f1=Q
{[%clk 0:00:03.3]} 83. Rxe5+ {[%clk 0:00:09]} 83... Kd4 {[%clk 0:00:03.9]} 84.
Rg5 {[%clk 0:00:08.7]} 84... Qh1+ {[%clk 0:00:03.8]} 85. Kg3 {[%clk 0:00:09]}
85... Rg1+ {[%clk 0:00:04.4]} 86. Kf4 {[%clk 0:00:09.9]} 86... Qe4# {[%clk
0:00:04.4]} 0-1

[Event "*** Titled Tuesday Blitz"]
[Site "Chess.com"]
[Date "2021.03.30"]
[Round "2"]
[White "Savva09022009"]
[Black "BogdanDeac"]
[Result "0-1"]
[WhiteElo "2603"]
[BlackElo "3024"]
[TimeControl "180+1"]
[EndTime "10:19:26 PDT"]
[Termination "BogdanDeac won by resignation"]

1. d4 {[%clk 0:03:00.9]} 1... g6 {[%clk 0:02:55.2]} 2. c4 {[%clk 0:03:00.9]}
2... Bg7 {[%clk 0:02:55.2]} 3. Nc3 {[%clk 0:03:01.5]} 3... d6 {[%clk 0:02:55.1]}
4. e4 {[%clk 0:02:53.8]} 4... Nd7 {[%clk 0:02:54.7]} 5. f3 {[%clk 0:02:50.8]}
5... e5 {[%clk 0:02:19]} 6. Be3 {[%clk 0:02:50.7]} 6... exd4 {[%clk 0:02:18.5]}
7. Bxd4 {[%clk 0:02:51.6]} 7... Ngf6 {[%clk 0:02:18.5]} 8. Qd2 {[%clk
0:02:46.1]} 8... O-O {[%clk 0:02:12.6]} 9. Nge2 {[%clk 0:02:46.6]} 9... Ne5
{[%clk 0:02:08.1]} 10. b3 {[%clk 0:02:44.8]} 10... Re8 {[%clk 0:01:46]} 11. Rd1
{[%clk 0:02:44.6]} 11... Nh5 {[%clk 0:01:24.3]} 12. Kf2 {[%clk 0:02:35.5]} 12...
f5 {[%clk 0:01:15.5]} 13. exf5 {[%clk 0:02:36]} 13... Bxf5 {[%clk 0:01:15.4]}
14. Kg1 {[%clk 0:02:32]} 14... Nf6 {[%clk 0:00:46.1]} 15. Ng3 {[%clk 0:02:29.5]}
15... Bd7 {[%clk 0:00:45.1]} 16. h3 {[%clk 0:02:23.1]} 16... Bc6 {[%clk
0:00:44.6]} 17. Be2 {[%clk 0:02:11]} 17... Nfd7 {[%clk 0:00:34.7]} 18. Kh2
{[%clk 0:02:08.3]} 18... Qh4 {[%clk 0:00:32]} 19. f4 {[%clk 0:02:06.4]} 19...
Bh6 {[%clk 0:00:21]} 20. Be3 {[%clk 0:02:05.1]} 20... Nf7 {[%clk 0:00:19.7]} 21.
Rhf1 {[%clk 0:02:03]} 21... Nc5 {[%clk 0:00:17.3]} 22. Bg4 {[%clk 0:01:53.8]}
22... Re7 {[%clk 0:00:15.1]} 23. Rde1 {[%clk 0:01:44.5]} 23... Rae8 {[%clk
0:00:14.3]} 24. Bf2 {[%clk 0:00:56.2]} 24... Rxe1 {[%clk 0:00:13.4]} 25. Rxe1
{[%clk 0:00:57.1]} 25... Rxe1 {[%clk 0:00:13]} 26. Bxe1 {[%clk 0:00:58]} 26...
Qf6 {[%clk 0:00:12.6]} 27. Nge2 {[%clk 0:00:58.6]} 27... Ne6 {[%clk 0:00:08.2]}
28. Bg3 {[%clk 0:00:48.5]} 28... Ng7 {[%clk 0:00:07.2]} 29. Nd4 {[%clk
0:00:46.1]} 29... Be8 {[%clk 0:00:04.7]} 30. Nd5 {[%clk 0:00:45.8]} 30... Qd8
{[%clk 0:00:05.1]} 31. Qe1 {[%clk 0:00:41.7]} 31... c6 {[%clk 0:00:05.4]} 32.
Bh4 {[%clk 0:00:42.2]} 32... g5 {[%clk 0:00:03.8]} 33. fxg5 {[%clk 0:00:43.1]}
33... Bxg5 {[%clk 0:00:03.7]} 34. Bxg5 {[%clk 0:00:42.1]} 34... Nxg5 {[%clk
0:00:04.6]} 35. Ne7+ {[%clk 0:00:40]} 35... Kf8 {[%clk 0:00:05]} 36. Nef5 {[%clk
0:00:37]} 36... Nxf5 {[%clk 0:00:05.3]} 37. Nxf5 {[%clk 0:00:37.9]} 37... Qf6
{[%clk 0:00:05.8]} 38. h4 {[%clk 0:00:37.5]} 38... Nf7 {[%clk 0:00:05.7]} 39.
Bh3 {[%clk 0:00:20.8]} 39... Bd7 {[%clk 0:00:05.1]} 40. Ne3 {[%clk 0:00:19.9]}
40... Bxh3 {[%clk 0:00:05.3]} 41. Kxh3 {[%clk 0:00:20.8]} 41... Ne5 {[%clk
0:00:05.4]} 42. Qf1 {[%clk 0:00:15.6]} 42... Qxf1 {[%clk 0:00:05.5]} 43. Nxf1
{[%clk 0:00:16.5]} 43... Nd3 {[%clk 0:00:06]} 44. Nd2 {[%clk 0:00:16.6]} 44...
Nc1 {[%clk 0:00:04.9]} 45. a3 {[%clk 0:00:16.6]} 45... Kf7 {[%clk 0:00:05.2]}
46. Kg3 {[%clk 0:00:16.6]} 46... Ke6 {[%clk 0:00:04.7]} 47. Kf3 {[%clk
0:00:16.7]} 47... Nd3 {[%clk 0:00:03.6]} 48. Ke3 {[%clk 0:00:16]} 48... Ne5
{[%clk 0:00:04.3]} 49. Kf4 {[%clk 0:00:15.9]} 49... h6 {[%clk 0:00:04.3]} 50. g4
{[%clk 0:00:15.8]} 50... d5 {[%clk 0:00:04]} 51. cxd5+ {[%clk 0:00:15.1]} 51...
cxd5 {[%clk 0:00:04.9]} 52. g5 {[%clk 0:00:15]} 52... h5 {[%clk 0:00:05.5]} 53.
Ke3 {[%clk 0:00:12.4]} 53... Ng6 {[%clk 0:00:05.5]} 54. Nf3 {[%clk 0:00:11.7]}
54... Kf5 {[%clk 0:00:06.1]} 55. Kd4 {[%clk 0:00:12]} 55... Kf4 {[%clk
0:00:06.4]} 56. Nh2 {[%clk 0:00:02.6]} 56... Nxh4 {[%clk 0:00:06.7]} 57. Kxd5
{[%clk 0:00:03.1]} 57... Kxg5 {[%clk 0:00:07]} 58. Ke4 {[%clk 0:00:03.6]} 58...
Ng6 {[%clk 0:00:06.7]} 59. Kf3 {[%clk 0:00:03.9]} 59... Kf5 {[%clk 0:00:06.6]}
60. Nf1 {[%clk 0:00:03.6]} 60... Ke5 {[%clk 0:00:06.5]} 61. Ke3 {[%clk
0:00:03.8]} 61... h4 {[%clk 0:00:06.2]} 62. Nh2 {[%clk 0:00:04.3]} 62... Kf5
{[%clk 0:00:06.3]} 63. Nf3 {[%clk 0:00:04.8]} 63... Kg4 {[%clk 0:00:06.1]} 64.
Kf2 {[%clk 0:00:05.3]} 64... Kf4 {[%clk 0:00:05.9]} 65. Ng1 {[%clk 0:00:04.5]}
65... Ke4 {[%clk 0:00:05.4]} 66. Ne2 {[%clk 0:00:04.4]} 66... Kd3 {[%clk
0:00:05.4]} 67. b4 {[%clk 0:00:04.6]} 67... Kc4 {[%clk 0:00:05.5]} 68. Nc1
{[%clk 0:00:04.4]} 68... Kc3 {[%clk 0:00:05.8]} 69. b5 {[%clk 0:00:04.6]} 69...
Kc4 {[%clk 0:00:05.9]} 70. a4 {[%clk 0:00:03.9]} 70... Kb4 {[%clk 0:00:06.3]}
71. Nd3+ {[%clk 0:00:04.4]} 71... Kxa4 {[%clk 0:00:06.5]} 72. Nc5+ {[%clk
0:00:05]} 72... Kxb5 {[%clk 0:00:06.8]} 73. Nxb7 {[%clk 0:00:05.9]} 73... a5
{[%clk 0:00:07.1]} 74. Nd6+ {[%clk 0:00:06.4]} 74... Kb4 {[%clk 0:00:07.4]} 75.
Ke2 {[%clk 0:00:06]} 75... a4 {[%clk 0:00:07.1]} 76. Kd2 {[%clk 0:00:06.5]}
76... a3 {[%clk 0:00:06.4]} 77. Kc1 {[%clk 0:00:06.9]} 77... h3 {[%clk
0:00:06.8]} 78. Ne4 {[%clk 0:00:06.8]} 78... h2 {[%clk 0:00:07.3]} 79. Ng3
{[%clk 0:00:07.1]} 79... Kb3 {[%clk 0:00:07.5]} 80. Kb1 {[%clk 0:00:06.8]} 80...
Nf4 {[%clk 0:00:07.9]} 81. Ka1 {[%clk 0:00:06.4]} 81... Nd5 {[%clk 0:00:07.5]}
82. Kb1 {[%clk 0:00:06.7]} 82... Ne3 {[%clk 0:00:07.4]} 83. Ka1 {[%clk
0:00:06.3]} 83... a2 {[%clk 0:00:06.8]} 0-1

[Event "*** Titled Tuesday Blitz"]
[Site "Chess.com"]
[Date "2021.03.30"]
[Round "2"]
[White "Yurovskykh_Oleksandr"]
[Black "Evgeny81"]
[Result "0-1"]
[WhiteElo "2520"]
[BlackElo "2774"]
[TimeControl "180+1"]
[EndTime "10:19:45 PDT"]
[Termination "Evgeny81 won on time"]

1. d4 {[%clk 0:03:00.9]} 1... c5 {[%clk 0:02:57.8]} 2. c3 {[%clk 0:03:00.7]}
2... e6 {[%clk 0:02:57.5]} 3. Nf3 {[%clk 0:03:00.6]} 3... d5 {[%clk 0:02:57.4]}
4. Bf4 {[%clk 0:03:00.3]} 4... Nf6 {[%clk 0:02:57.5]} 5. e3 {[%clk 0:03:00.6]}
5... Bd6 {[%clk 0:02:57.7]} 6. Bg3 {[%clk 0:03:01.1]} 6... Qc7 {[%clk
0:02:55.5]} 7. Nbd2 {[%clk 0:02:49.9]} 7... Nbd7 {[%clk 0:02:55.1]} 8. Bd3
{[%clk 0:02:49.7]} 8... e5 {[%clk 0:02:51.2]} 9. dxe5 {[%clk 0:02:49.6]} 9...
Nxe5 {[%clk 0:02:51.6]} 10. Nxe5 {[%clk 0:02:50.2]} 10... Bxe5 {[%clk
0:02:52.4]} 11. Nf3 {[%clk 0:02:43.5]} 11... Bxg3 {[%clk 0:02:48.9]} 12. hxg3
{[%clk 0:02:44.4]} 12... h6 {[%clk 0:02:47.9]} 13. Qa4+ {[%clk 0:02:43.5]} 13...
Bd7 {[%clk 0:02:46.7]} 14. Qf4 {[%clk 0:02:43.3]} 14... O-O-O {[%clk 0:02:41.6]}
15. Qxc7+ {[%clk 0:02:36.4]} 15... Kxc7 {[%clk 0:02:42.5]} 16. Ne5 {[%clk
0:02:36]} 16... Be6 {[%clk 0:02:40]} 17. O-O-O {[%clk 0:02:10]} 17... Rhe8
{[%clk 0:02:39.1]} 18. Bc2 {[%clk 0:02:00.4]} 18... Re7 {[%clk 0:02:35]} 19. Rd2
{[%clk 0:01:55.5]} 19... Bc8 {[%clk 0:02:26]} 20. Nf3 {[%clk 0:01:54]} 20... Ne4
{[%clk 0:02:18.4]} 21. Bxe4 {[%clk 0:01:42.1]} 21... dxe4 {[%clk 0:02:19.3]} 22.
Rxd8 {[%clk 0:01:42]} 22... Kxd8 {[%clk 0:02:19.8]} 23. Nd2 {[%clk 0:01:40]}
23... Kc7 {[%clk 0:02:17.3]} 24. Rh4 {[%clk 0:01:37.6]} 24... f5 {[%clk
0:02:04.8]} 25. Rh1 {[%clk 0:01:36.8]} 25... Be6 {[%clk 0:01:59.9]} 26. b3
{[%clk 0:01:34.6]} 26... Kd6 {[%clk 0:01:46.8]} 27. Rd1 {[%clk 0:01:34.4]} 27...
Ke5 {[%clk 0:01:47]} 28. Nc4+ {[%clk 0:01:27.4]} 28... Bxc4 {[%clk 0:01:46.8]}
29. bxc4 {[%clk 0:01:28.3]} 29... b6 {[%clk 0:01:41.3]} 30. Rd8 {[%clk
0:01:27.9]} 30... Ke6 {[%clk 0:01:38.8]} 31. Kc2 {[%clk 0:01:14.8]} 31... Rd7
{[%clk 0:01:38.6]} 32. Rf8 {[%clk 0:00:54]} 32... h5 {[%clk 0:01:33.2]} 33. Rh8
{[%clk 0:00:52.2]} 33... g6 {[%clk 0:01:32.1]} 34. Rg8 {[%clk 0:00:50.7]} 34...
Kf6 {[%clk 0:01:30.5]} 35. Rc8 {[%clk 0:00:51]} 35... Kg5 {[%clk 0:01:25.7]} 36.
Rh8 {[%clk 0:00:44]} 36... Kg4 {[%clk 0:01:25]} 37. a4 {[%clk 0:00:43.9]} 37...
a5 {[%clk 0:01:19]} 38. Rh6 {[%clk 0:00:43.2]} 38... Rd6 {[%clk 0:01:18.5]} 39.
Rh8 {[%clk 0:00:42]} 39... g5 {[%clk 0:01:17.5]} 40. Rh7 {[%clk 0:00:35.1]}
40... Rg6 {[%clk 0:01:13.6]} 41. Kd2 {[%clk 0:00:31.8]} 41... h4 {[%clk
0:01:12.7]} 42. gxh4 {[%clk 0:00:30.4]} 42... gxh4 {[%clk 0:01:12.5]} 43. Ke2
{[%clk 0:00:27.8]} 43... Kg5 {[%clk 0:01:06.8]} 44. Rh8 {[%clk 0:00:27.3]} 44...
Rh6 {[%clk 0:00:58.6]} 45. Rb8 {[%clk 0:00:24.1]} 45... Rg6 {[%clk 0:00:52.9]}
46. Rh8 {[%clk 0:00:24]} 46... Rd6 {[%clk 0:00:51.8]} 47. Rb8 {[%clk 0:00:23.1]}
47... Rd3 {[%clk 0:00:46.4]} 48. Rxb6 {[%clk 0:00:22.8]} 48... Rxc3 {[%clk
0:00:46.7]} 49. Rb5 {[%clk 0:00:22.8]} 49... Rxc4 {[%clk 0:00:44.4]} 50. Rxa5
{[%clk 0:00:22.9]} 50... Rc2+ {[%clk 0:00:42.4]} 51. Ke1 {[%clk 0:00:23]} 51...
Kf6 {[%clk 0:00:35.3]} 52. Rb5 {[%clk 0:00:20.2]} 52... Ke6 {[%clk 0:00:34.1]}
53. a5 {[%clk 0:00:20.4]} 53... Kd5 {[%clk 0:00:34.1]} 54. a6 {[%clk 0:00:20.7]}
54... Ra2 {[%clk 0:00:34.2]} 55. Rb6 {[%clk 0:00:19.1]} 55... Kc4 {[%clk
0:00:34.1]} 56. Rd6 {[%clk 0:00:17.6]} 56... Kc3 {[%clk 0:00:27.7]} 57. f3
{[%clk 0:00:15.2]} 57... Rxg2 {[%clk 0:00:23.5]} 58. fxe4 {[%clk 0:00:15.3]}
58... fxe4 {[%clk 0:00:23.3]} 59. Rh6 {[%clk 0:00:09]} 59... Ra2 {[%clk
0:00:19.9]} 60. Rxh4 {[%clk 0:00:09.1]} 60... Kd3 {[%clk 0:00:20.3]} 61. Rh5
{[%clk 0:00:06.7]} 61... Kxe3 {[%clk 0:00:17.7]} 62. Rh3+ {[%clk 0:00:05.3]}
62... Kd4 {[%clk 0:00:17.9]} 63. Rh6 {[%clk 0:00:05.5]} 63... c4 {[%clk
0:00:17.1]} 64. Rd6+ {[%clk 0:00:05.2]} 64... Kc3 {[%clk 0:00:14.1]} 65. Re6
{[%clk 0:00:04.8]} 65... Kd3 {[%clk 0:00:11.9]} 66. Rd6+ {[%clk 0:00:05]} 66...
Ke3 {[%clk 0:00:12.3]} 67. Kf1 {[%clk 0:00:03.5]} 67... c3 {[%clk 0:00:11.8]}
68. Rc6 {[%clk 0:00:03.2]} 68... Kd2 {[%clk 0:00:11.5]} 69. Rd6+ {[%clk
0:00:02.7]} 69... Kc2 {[%clk 0:00:11.3]} 70. Ke2 {[%clk 0:00:02.8]} 70... Kb1+
{[%clk 0:00:07.8]} 71. Ke3 {[%clk 0:00:03.3]} 71... c2 {[%clk 0:00:08.1]} 72.
Rb6+ {[%clk 0:00:03.7]} 72... Kc1 {[%clk 0:00:06.9]} 73. Kxe4 {[%clk 0:00:03.2]}
73... Kd2 {[%clk 0:00:07]} 74. Rd6+ {[%clk 0:00:03.8]} 74... Ke2 {[%clk
0:00:05.9]} 75. Rc6 {[%clk 0:00:04.3]} 75... Ra4+ {[%clk 0:00:05.8]} 76. Kd5
{[%clk 0:00:04.2]} 76... Kd3 {[%clk 0:00:06.2]} 77. Kd6 {[%clk 0:00:04.4]} 77...
Rxa6 {[%clk 0:00:05.7]} 78. Rxa6 {[%clk 0:00:04.5]} 78... c1=Q {[%clk
0:00:06.3]} 79. Rc6 {[%clk 0:00:05.2]} 79... Qa3+ {[%clk 0:00:05.9]} 80. Kc7
{[%clk 0:00:06.1]} 80... Kd4 {[%clk 0:00:05.9]} 81. Rd6+ {[%clk 0:00:06.6]}
81... Ke5 {[%clk 0:00:05.4]} 82. Rc6 {[%clk 0:00:07]} 82... Qa7+ {[%clk
0:00:05.2]} 83. Kc8 {[%clk 0:00:07.6]} 83... Kd5 {[%clk 0:00:05.6]} 84. Rc7
{[%clk 0:00:08]} 84... Qa8+ {[%clk 0:00:05]} 85. Kd7 {[%clk 0:00:08.5]} 85...
Qa6 {[%clk 0:00:04.7]} 86. Rc8 {[%clk 0:00:08.7]} 86... Qd6+ {[%clk 0:00:03.4]}
87. Ke8 {[%clk 0:00:09.2]} 87... Ke6 {[%clk 0:00:03.7]} 0-1